bitfinex/quotes_SOLUSD_20240717
["timestamp","ask_amount","ask_price","bid_price","bid_amount"]
[1721259612358,15.9892,156.36,156.28,17.23184368]
[1721259612533,20.0,156.35,156.28,17.23184368]
[1721259612727,20.0,156.35,156.3,6.3978]
[1721259612943,6.3959,156.35,156.31,1.27919565]
[1721259613146,6.3959,156.35,156.31,7.67659565]
[1721259613738,6.3959,156.35,156.31,1.27919565]
[1721259613939,6.3959,156.35,156.3,6.3978]
[1721259614140,6.3959,156.35,156.28,15.9524]
[1721259614141,15.9884,156.37,156.28,15.9524]
[1721259614348,15.9884,156.37,156.28,17.23177176]
[1721259615352,6.3974,156.32,156.28,22.351]
[1721259615955,6.3974,156.32,156.29,1.27941308]
[1721259616155,6.3974,156.32,156.3,1.27941376]
[1721259616359,6.3974,156.32,156.28,22.351]
[1721259617759,6.3974,156.32,156.29,1.27942302]
[1721259617952,6.3974,156.32,156.28,22.351]
[1721259618470,6.3974,156.32,156.28,15.9524]
[1721259618770,6.3974,156.32,156.28,22.351]
[1721259618936,6.3974,156.32,156.29,1.27948303]
[1721259619136,6.3976,156.31,156.28,15.9524]
[1721259619361,6.3971,156.32,156.29,1.27948897]
[1721259619561,6.3967,156.33,156.3,1.27947687]
[1721259620559,6.3967,156.33,156.29,1.2794555]
[1721259620758,6.3967,156.33,156.3,1.27945554]
[1721259622662,6.3963,156.34,156.3,7.67735554]
[1721259622871,6.396,156.35,156.3,7.67735554]
[1721259623643,6.3964,156.34,156.3,7.67735554]
[1721259624056,6.3964,156.34,156.29,6.3983]
[1721259624457,6.3964,156.34,156.3,1.27928102]
[1721259625042,6.3964,156.34,156.29,6.3983]
[1721259625253,6.3967,156.33,156.29,6.3983]
[1721259625562,6.3967,156.33,156.3,1.27931254]
[1721259625965,6.3964,156.34,156.29,6.3983]
[1721259626851,6.3964,156.34,156.28,48.0288]
[1721259626852,6.3968,156.33,156.28,38.6874]
[1721259629456,6.3971,156.32,156.28,38.6874]
[1721259629964,6.3971,156.32,156.28,31.9488]
[1721259630147,6.3977,156.31,156.28,15.9524]
[1721259630349,16.5878,156.37,156.28,15.9524]
[1721259630547,6.3984,156.29,156.24,22.4954]
[1721259631854,6.3998,156.26,156.24,16.0951]
[1721259632056,15.9948,156.31,156.24,16.0951]
[1721259632371,6.3997,156.26,156.24,16.0951]
[1721259636272,6.4,156.25,156.2,15.0892]
[1721259636649,32.406,156.31,156.2,15.0892]
[1721259636650,6.401,156.23,156.2,15.0892]
[1721259637368,6.4013,156.22,156.17,6.4031]
[1721259637769,5.9013,156.22,156.17,6.4031]
[1721259638261,6.4025,156.19,156.16,15.0892]
[1721259638991,6.4021,156.2,156.16,15.0892]
[1721259639290,6.4016,156.21,156.17,1.28056028]
[1721259639477,6.4016,156.21,156.18,1.28040751]
[1721259639777,6.4012,156.22,156.18,1.28040751]
[1721259639967,31.045,156.25,156.16,15.0892]
[1721259640171,6.4021,156.2,156.16,15.0892]
[1721259640650,6.4021,156.2,156.17,1.28048032]
[1721259641352,6.4015,156.22,156.17,1.2804394]
[1721259641565,6.4017,156.21,156.18,1.2804394]
[1721259641872,6.4013,156.22,156.17,6.4032]
[1721259642260,6.4013,156.22,156.18,6.4028]
[1721259642464,6.4013,156.22,156.17,6.4031]
[1721259643251,6.4016,156.21,156.17,6.4031]
[1721259644166,6.4013,156.22,156.17,6.4031]
[1721259645880,15.9972,156.28,156.18,7.53103371]
[1721259646177,15.9972,156.28,156.19,51.4021]
[1721259646178,6.4009,156.23,156.19,51.4021]
[1721259648462,6.4004,156.24,156.19,51.4021]
[1721259648662,6.3999,156.26,156.21,6.4015]
[1721259648861,6.4003,156.25,156.2,6.4019]
[1721259653288,6.4003,156.25,156.21,6.4015]
[1721259654289,6.3992,156.27,156.22,6.4008]
[1721259654588,6.3996,156.26,156.22,22.1258]
[1721259654967,22.62330958,156.31,156.23,6.4006]
[1721259655177,22.62330958,156.31,156.24,1.2799001]
[1721259656169,6.3992,156.27,156.24,1.2799001]
[1721259656372,6.3992,156.27,156.23,1.2799007]
[1721259657585,6.3992,156.27,156.24,1.27989972]
[1721259658390,6.3996,156.26,156.24,1.27989972]
[1721259658574,6.3996,156.26,156.23,1.2799105]
[1721259658773,6.3992,156.27,156.23,1.2799105]
[1721259659596,6.3988,156.28,156.23,6.4007]
[1721259659771,6.3988,156.28,156.23,7.68047779]
[1721259659972,6.3988,156.28,156.24,1.27977881]
[1721259660170,6.3988,156.28,156.23,6.4007]
[1721259660372,6.3988,156.28,156.24,1.2798013]
[1721259661562,6.3992,156.27,156.24,1.2798013]
[1721259661975,6.3992,156.27,156.22,22.1261]
[1721259662974,6.3996,156.26,156.22,15.725]
[1721259663405,6.3996,156.26,156.22,22.1262]
[1721259663976,6.3996,156.26,156.22,15.725]
[1721259664885,6.3996,156.26,156.22,22.1261]
[1721259666885,6.3996,156.26,156.22,15.725]
[1721259668788,6.4,156.25,156.22,15.725]
[1721259669991,6.3996,156.26,156.22,15.725]
[1721259672384,6.4001,156.25,156.22,15.725]
[1721259674978,6.4005,156.24,156.22,15.725]
[1721259675978,6.4001,156.25,156.22,15.725]
[1721259677483,15.9963,156.29,156.22,15.725]
[1721259677484,6.3997,156.26,156.22,15.725]
[1721259677902,6.3992,156.27,156.22,23.40629145]
[1721259678502,6.3992,156.27,156.22,23.40615396]
[1721259678713,15.9963,156.29,156.22,23.40615396]
[1721259678714,6.3997,156.26,156.22,23.40615396]
[1721259679379,6.3997,156.26,156.22,17.00505396]
[1721259680498,6.4,156.25,156.22,17.00505396]
[1721259681088,6.4,156.25,156.22,15.725]
[1721259683994,6.4,156.25,156.22,17.00508779]
[1721259684190,6.4,156.25,156.22,15.725]
[1721259685404,6.4004,156.24,156.22,15.725]
[1721259685794,6.4015,156.22,156.18,38.4019]
[1721259686494,6.4015,156.22,156.18,44.8046]
[1721259688701,6.4009,156.23,156.18,44.8046]
[1721259689593,15.9984,156.27,156.18,44.8046]
[1721259689594,6.4017,156.21,156.18,16.1443]
[1721259689792,16.0014,156.24,156.15,16.0099]
[1721259689993,6.4021,156.2,156.15,22.4139]
[1721259691019,6.4021,156.2,156.16,6.4036]
[1721259691204,6.4021,156.2,156.15,22.4139]
[1721259691991,6.4021,156.2,156.16,6.4035]
[1721259692392,6.4021,156.2,156.15,22.4138]
[1721259697606,23.0328,156.26,156.17,16.0077]
[1721259697792,6.4011,156.23,156.18,6.4025]
[1721259697988,6.4011,156.23,156.19,6.4023]
[1721259698326,20.0,156.25,156.19,16.0056]
[1721259698821,6.4004,156.24,156.19,22.4079]
[1721259699513,6.4009,156.23,156.19,22.4079]
[1721259701521,26.4003,156.25,156.2,7.68228154]
[1721259702621,6.4004,156.24,156.2,6.402]
[1721259702821,6.4004,156.24,156.19,22.4079]
[1721259703920,6.4009,156.23,156.2,1.28022249]
[1721259704126,6.4009,156.23,156.19,16.0056]
[1721259704821,6.4009,156.23,156.19,22.4079]
[1721259706114,6.4009,156.23,156.19,16.0056]
[1721259708447,6.4009,156.23,156.2,1.28015031]
[1721259709111,36.0004,156.25,156.16,44.2657]
[1721259709532,6.4019,156.21,156.16,44.2657]
[1721259709709,6.4022,156.2,156.16,16.0085]
[1721259710309,6.4025,156.19,156.15,6.404]
[1721259710524,6.4031,156.18,156.14,22.7511]
[1721259710724,6.4031,156.18,156.14,16.3467]
[1721259712525,6.4031,156.18,156.14,22.751]
[1721259712827,6.4025,156.19,156.15,7.6846187]
[1721259713030,6.4021,156.2,156.15,7.6846187]
[1721259716610,6.4021,156.2,156.16,6.4035]
[1721259716923,6.4021,156.2,156.15,22.4138]
[1721259718628,6.4025,156.19,156.15,22.4138]
[1721259719931,6.403,156.18,156.14,16.3467]
[1721259720438,6.403,156.18,156.14,22.7511]
[1721259720733,16.0025,156.23,156.15,1.28064773]
[1721259720943,20.0,156.22,156.15,1.28064773]
[1721259721137,6.4023,156.2,156.15,6.4039]
[1721259721836,6.4025,156.19,156.15,6.4039]
[1721259722335,26.4015,156.22,156.16,17.28925191]
[1721259722924,6.4015,156.22,156.16,16.0087]
[1721259723136,7.48949037,156.27,156.17,17.19026415]
[1721259723323,14.11291222,156.27,156.2,16.0044]
[1721259724329,6.4008,156.23,156.2,16.0044]
[1721259725139,6.4005,156.24,156.2,16.0044]
[1721259725432,6.4005,156.24,156.2,22.4063]
[1721259725630,6.4,156.25,156.21,7.68161354]
[1721259725822,6.4,156.25,156.2,38.3524]
[1721259726024,6.4005,156.24,156.2,31.9504]
[1721259726227,6.62342185,156.27,156.2,31.9504]
[1721259726943,65.0,156.26,156.16,31.2138]
[1721259727138,6.4019,156.21,156.16,37.6174]
[1721259727329,6.4019,156.21,156.17,6.4031]
[1721259727818,6.4012,156.22,156.17,6.4031]
[1721259728519,6.4018,156.21,156.16,37.6174]
[1721259728938,6.4012,156.22,156.17,7.68352989]
[1721259729136,6.4012,156.22,156.17,6.4031]
[1721259729715,6.4016,156.21,156.17,6.4031]
[1721259730323,6.4013,156.22,156.17,6.4031]
[1721259731524,65.0,156.26,156.17,6.4031]
[1721259731525,6.4017,156.21,156.17,6.4031]
[1721259732025,6.4017,156.21,156.16,37.6174]
[1721259732225,6.402,156.2,156.16,31.2138]
[1721259733954,6.402,156.2,156.16,37.6173]
[1721259734638,6.4025,156.19,156.16,15.2056]
[1721259735654,6.4021,156.2,156.16,15.2056]
[1721259736032,6.4025,156.19,156.16,15.2056]
[1721259740939,6.4021,156.2,156.16,15.2056]
[1721259741262,6.4021,156.2,156.16,21.6092]
[1721259741446,6.4021,156.2,156.16,15.2056]
[1721259742333,6.4025,156.19,156.16,15.2056]
[1721259744565,16.0025,156.23,156.13,22.4162]
[1721259744736,28.54615693,156.24,156.12,16.1412]
[1721259744737,6.4037,156.16,156.12,22.5464]
[1721259744944,6.4041,156.15,156.12,16.1412]
[1721259747763,6.4045,156.14,156.1,22.4209]
[1721259748534,6.4041,156.15,156.1,22.4209]
[1721259751655,6.4046,156.14,156.1,22.4209]
[1721259752749,6.4052,156.13,156.08,22.0368]
[1721259753153,16.0086,156.17,156.08,22.0368]
[1721259753357,6.4055,156.12,156.08,15.6303]
[1721259755074,6.4055,156.12,156.08,22.0371]
[1721259757873,6.4057,156.11,156.07,22.4255]
[1721259758366,6.4062,156.1,156.07,16.0183]
[1721259758665,6.4066,156.09,156.04,22.5104]
[1721259759875,6.4058,156.11,156.05,16.0198]
[1721259760168,20.0,156.1,156.05,16.0198]
[1721259760549,26.4064,156.1,156.05,22.4278]
[1721259761446,6.4066,156.09,156.05,22.4278]
[1721259761654,6.4066,156.09,156.05,16.0198]
[1721259762568,6.407,156.08,156.05,16.0198]
[1721259762955,6.407,156.08,156.04,16.1022]
[1721259763152,20.0,156.1,156.04,16.1022]
[1721259763359,6.4075,156.07,156.04,16.1022]
[1721259765170,6.4071,156.08,156.04,16.1022]
[1721259765483,6.4071,156.08,156.04,17.38373227]
[1721259766754,6.4074,156.07,156.04,17.38373227]
[1721259767669,6.4074,156.07,156.04,16.1022]
[1721259768591,6.4082,156.05,156.04,16.1022]
[1721259769473,6.4079,156.06,156.04,16.1022]
[1721259769681,16.0157,156.1,156.04,16.1022]
[1721259769884,6.4074,156.07,156.04,16.1022]
[1721259770972,6.4078,156.06,156.04,16.1022]
[1721259771679,6.4082,156.05,156.04,16.1022]
[1721259772579,6.4082,156.05,156.01,22.4337]
[1721259772872,6.4082,156.05,156.01,16.024]
[1721259773073,6.4078,156.06,156.01,22.4337]
[1721259776982,6.4083,156.05,156.01,16.024]
[1721259777780,6.4078,156.06,156.01,22.4338]
[1721259778988,6.4078,156.06,156.01,23.7155191]
[1721259779187,6.4078,156.06,156.01,22.4338]
[1721259779372,6.4082,156.05,156.01,22.4338]
[1721259779569,6.4078,156.06,156.02,1.2817952]
[1721259779777,6.4078,156.06,156.02,7.6910952]
[1721259780472,6.4078,156.06,156.02,6.4093]
[1721259781792,6.4074,156.07,156.03,6.4089]
[1721259781991,6.4074,156.07,156.03,7.69052296]
[1721259782382,6.4074,156.07,156.03,1.28162296]
[1721259782569,6.4078,156.06,156.02,6.4093]
[1721259782981,6.4078,156.06,156.01,22.4337]
[1721259783182,6.4082,156.05,156.01,16.024]
[1721259784390,6.4086,156.04,156.0,22.2256]
[1721259784696,6.4086,156.04,156.0,22.2257]
[1721259788097,6.4086,156.04,156.0,22.2257]
[1721259788294,6.4086,156.04,156.01,1.28180784]
[1721259789599,6.4086,156.04,156.0,22.2257]
[1721259791500,6.4086,156.04,156.01,1.28180923]
[1721259795202,16.0178,156.08,156.0,31.8404]
[1721259795397,20.0,156.07,156.0,31.8404]
[1721259796096,6.4083,156.05,156.01,6.4095]
[1721259796691,6.59834416,156.1,156.02,16.0231]
[1721259796892,6.4076,156.07,156.03,7.69022665]
[1721259797099,6.59834416,156.1,156.04,17.30240169]
[1721259797411,6.59834416,156.1,156.06,6.4074]
[1721259797589,6.406,156.11,156.06,6.4074]
[1721259798100,31.9256,156.14,156.06,6.4074]
[1721259798101,6.4062,156.1,156.06,6.4074]
[1721259798400,6.4062,156.1,156.05,6.4081]
[1721259798698,6.4062,156.1,156.05,23.42932907]
[1721259798890,6.4062,156.1,156.06,6.4077]
[1721259800603,6.4056,156.12,156.07,29.89516976]
[1721259800790,6.4057,156.11,156.07,29.89516976]
[1721259801591,6.4057,156.11,156.07,28.614]
[1721259801990,6.4054,156.12,156.07,28.614]
[1721259802309,6.4054,156.12,156.08,1.28110552]
[1721259802605,6.4054,156.12,156.08,7.68800552]
[1721259802804,6.4037,156.16,156.09,17.02098423]
[1721259803007,6.4041,156.15,156.1,6.406]
[1721259803306,6.4041,156.15,156.11,1.28092243]
[1721259803704,6.4037,156.16,156.11,7.68642243]
[1721259803918,6.4037,156.16,156.11,6.4056]
[1721259804210,6.4049,156.13,156.09,6.4063]
[1721259804500,6.4045,156.14,156.09,6.4063]
[1721259804704,6.4041,156.15,156.09,22.4219]
[1721259805010,269.5077,156.18,156.09,22.4219]
[1721259805221,6.4054,156.12,156.07,28.6138]
[1721259805389,253.5,156.18,156.08,16.0172]
[1721259805593,6.4039,156.16,156.11,6.4054]
[1721259805783,6.4041,156.15,156.12,1.28082462]
[1721259805995,6.4041,156.15,156.1,22.4206]
[1721259806621,6.4045,156.14,156.1,16.0146]
[1721259806818,6.4041,156.15,156.1,22.4206]
[1721259807292,6.4041,156.15,156.11,1.28082633]
[1721259808412,6.4038,156.16,156.11,7.68642633]
[1721259808797,6.4038,156.16,156.11,23.42642633]
[1721259809222,16.0059,156.2,156.12,22.8143]
[1721259809513,6.4034,156.17,156.12,22.8143]
[1721259811592,6.4034,156.17,156.13,6.4049]
[1721259811792,6.31683204,156.22,156.13,6.4049]
[1721259811793,6.4029,156.18,156.13,6.4049]
[1721259815595,6.4024,156.2,156.14,16.0105]
[1721259815796,6.4024,156.2,156.15,7.68460904]
[1721259816889,6.4024,156.2,156.15,6.404]
[1721259817097,6.4026,156.19,156.14,22.4148]
[1721259818896,6.4026,156.19,156.15,6.404]
[1721259819097,6.4026,156.19,156.16,1.28051327]
[1721259819298,6.4026,156.19,156.15,6.404]
[1721259819604,6.4026,156.19,156.14,22.4149]
[1721259819919,6.4029,156.18,156.14,16.0105]
[1721259820804,28.71312607,156.23,156.14,22.4148]
[1721259821116,6.4025,156.19,156.14,22.4148]
[1721259822312,6.4029,156.18,156.14,22.4148]
[1721259823522,6.4024,156.19,156.14,22.4148]
[1721259823723,6.4024,156.19,156.15,6.4038]
[1721259824906,28.71312607,156.23,156.16,6.4036]
[1721259825106,6.4023,156.2,156.15,6.404]
[1721259825508,6.4026,156.19,156.15,6.404]
[1721259826105,6.4026,156.19,156.14,22.4149]
[1721259826428,6.4026,156.19,156.12,38.4963]
[1721259826429,16.0049,156.21,156.12,22.7563]
[1721259826622,6.4033,156.17,156.12,22.7563]
[1721259827223,6.4033,156.17,156.12,29.1615]
[1721259827614,6.4033,156.17,156.13,6.4048]
[1721259829730,6.4029,156.18,156.13,6.4048]
[1721259830922,12.71072607,156.23,156.15,6.4039]
[1721259831120,6.4023,156.2,156.15,6.4039]
[1721259831319,12.86354372,156.23,156.15,6.4039]
[1721259831320,6.4026,156.19,156.15,6.4039]
[1721259831933,6.4026,156.19,156.14,6.4044]
[1721259832316,6.4029,156.18,156.14,6.4044]
[1721259832515,6.4025,156.19,156.15,6.404]
[1721259836521,6.4025,156.19,156.14,6.4044]
[1721259840041,6.4029,156.18,156.14,6.4044]
[1721259841152,6.4025,156.19,156.15,6.404]
[1721259841548,6.402,156.2,156.16,6.4036]
[1721259842642,6.402,156.2,156.15,6.4039]
[1721259843226,6.4024,156.19,156.15,6.4039]
[1721259843526,44.84882607,156.23,156.12,22.7563]
[1721259843728,88.79339284,156.22,156.12,16.4093]
[1721259843945,102.11366913,156.22,156.12,16.4093]
[1721259844133,102.11366913,156.22,156.08,28.1756]
[1721259844134,16.0077,156.18,156.08,28.1756]
[1721259844450,6.4049,156.13,156.08,28.1756]
[1721259844742,6.4049,156.13,156.09,6.4064]
[1721259845037,6.4045,156.14,156.1,6.4059]
[1721259845447,6.4045,156.14,156.09,22.4223]
[1721259845650,20.0,156.17,156.08,28.1756]
[1721259845834,6.4056,156.12,156.08,21.7688]
[1721259846142,6.4056,156.12,156.08,28.1756]
[1721259846332,6.4057,156.11,156.08,15.2111]
[1721259846732,6.4054,156.12,156.08,15.2111]
[1721259847528,6.4054,156.12,156.08,21.618]
[1721259848425,6.4057,156.11,156.08,15.2111]
[1721259849140,6.405,156.13,156.08,21.618]
[1721259849343,16.0097,156.16,156.08,15.2111]
[1721259849548,6.4059,156.11,156.08,15.2111]
[1721259849930,6.4054,156.12,156.08,15.2111]
[1721259850820,16.0097,156.16,156.09,6.4064]
[1721259851026,20.0,156.15,156.09,6.4064]
[1721259852346,6.405,156.13,156.09,6.4064]
[1721259852526,6.4046,156.14,156.09,6.4064]
[1721259852726,6.4049,156.13,156.09,6.4064]
[1721259853146,6.4049,156.13,156.08,37.6347]
[1721259857451,6.4053,156.12,156.08,31.2279]
[1721259860155,6.4053,156.12,156.08,37.6347]
[1721259862757,6.4059,156.11,156.08,15.2111]
[1721259865544,6.4054,156.12,156.08,15.2111]
[1721259865860,6.4054,156.12,156.08,21.618]
[1721259870942,6.4058,156.11,156.08,15.2111]
[1721259874075,16.0117,156.14,156.08,15.2111]
[1721259874253,16.0117,156.14,156.04,44.9307]
[1721259874254,6.407,156.08,156.04,44.9307]
[1721259875854,6.4065,156.09,156.05,6.408]
[1721259877264,6.4065,156.09,156.04,44.9307]
[1721259878065,6.407,156.08,156.04,44.9307]
[1721259878463,6.4066,156.09,156.04,44.9307]
[1721259879560,6.407,156.08,156.04,44.9307]
[1721259881165,6.4066,156.09,156.04,44.9307]
[1721259882979,16.0169,156.09,156.04,16.0238]
[1721259883191,6.4078,156.06,156.04,16.0238]
[1721259883567,7.72557519,156.12,156.04,16.0238]
[1721259883762,65.0,156.11,156.04,16.0238]
[1721259884371,6.4074,156.07,156.04,16.0238]
[1721259886879,6.407,156.08,156.04,16.0238]
[1721259887283,6.4073,156.07,156.04,16.0238]
[1721259887672,6.4069,156.09,156.04,16.0238]
[1721259887872,6.407,156.08,156.04,16.0238]
[1721259891601,6.4074,156.07,156.04,16.0238]
[1721259892409,6.4082,156.05,156.04,16.0238]
[1721259892613,20.0,156.11,156.04,16.0238]
[1721259892782,6.407,156.08,156.04,16.0238]
[1721259893283,6.4075,156.07,156.04,16.0238]
[1721259893816,6.4078,156.06,156.04,16.0238]
[1721259894317,6.4069,156.08,156.04,16.0238]
[1721259896814,6.4074,156.07,156.04,16.0238]
[1721259900984,6.4078,156.06,156.04,16.0238]
[1721259901384,6.4075,156.07,156.04,16.0238]
[1721259902590,6.4082,156.05,156.04,16.0238]
[1721259904294,6.4078,156.06,156.04,16.0238]
[1721259904811,6.4078,156.06,156.05,1.28152134]
[1721259905388,6.4074,156.07,156.05,1.28152134]
[1721259905904,6.4074,156.07,156.04,16.0238]
[1721259906314,6.4078,156.06,156.04,16.0238]
[1721259906899,6.4078,156.06,156.05,1.28147613]
[1721259907513,6.4074,156.07,156.05,1.28147613]
[1721259907912,6.4074,156.07,156.04,16.0238]
[1721259908713,20.0,156.11,156.04,16.0238]
[1721259908922,6.4061,156.11,156.05,6.0333]
[1721259909100,6.4061,156.11,156.06,1.28114812]
[1721259909305,6.4061,156.11,156.06,6.4075]
[1721259909901,6.4063,156.1,156.06,6.4075]
[1721259911697,6.4068,156.09,156.05,22.0536]
[1721259911907,6.4062,156.1,156.06,6.4077]
[1721259912412,6.4058,156.11,156.06,6.4077]
[1721259913612,16.0121,156.14,156.06,6.4077]
[1721259913613,6.4062,156.1,156.06,6.4077]
[1721259915522,6.4062,156.1,156.05,28.4617]
[1721259916314,16.0121,156.14,156.05,28.4617]
[1721259916315,6.4066,156.09,156.05,28.4617]
[1721259917423,6.4061,156.1,156.05,28.4617]
[1721259918422,6.4068,156.09,156.05,22.0536]
[1721259918625,6.4069,156.08,156.05,16.0203]
[1721259918830,6.4078,156.06,156.02,16.0234]
[1721259919129,22.6563,156.12,156.0,15.5374]
[1721259919130,15.4351,156.11,156.0,15.5374]
[1721259919346,6.4094,156.03,156.0,15.5374]
[1721259919640,6.4086,156.04,156.0,15.5374]
[1721259920347,6.409,156.03,156.0,15.5374]
[1721259921135,6.409,156.03,155.99,6.4105]
[1721259922211,6.4095,156.02,155.98,16.0271]
[1721259922414,6.1369,156.06,155.97,6.4114]
[1721259922616,6.4099,156.01,155.96,16.4817]
[1721259923007,6.4099,156.01,155.96,22.8933]
[1721259923733,6.4099,156.01,155.97,6.4114]
[1721259924126,6.4095,156.02,155.97,6.4114]
[1721259925116,6.4098,156.01,155.97,6.4114]
[1721259925317,6.4098,156.01,155.96,22.8935]
[1721259926164,22.0678,156.06,155.93,0.8081502]
[1721259926165,22.18584241,156.06,155.93,0.8081502]
[1721259926445,6.4119,155.96,155.93,0.8081502]
[1721259926910,6.4126,155.95,155.93,0.8081502]
[1721259927341,6.4123,155.95,155.93,0.8081502]
[1721259927515,16.0272,155.99,155.93,0.8081502]
[1721259927717,20.0,155.98,155.93,0.8081502]
[1721259927912,6.4119,155.96,155.93,0.8081502]
[1721259928117,6.4115,155.97,155.93,7.2212502]
[1721259929127,6.411,155.99,155.94,6.4126]
[1721259929344,6.4103,156.0,155.95,7.69436747]
[1721259929524,6.4111,155.98,155.93,22.9609502]
[1721259929714,6.4111,155.98,155.93,7.2209502]
[1721259930142,6.4111,155.98,155.94,1.28227431]
[1721259930532,6.4107,155.99,155.94,6.4126]
[1721259930753,6.4107,155.99,155.95,1.28227435]
[1721259930917,6.4111,155.98,155.93,7.2211502]
[1721259931238,6.4107,155.99,155.94,6.4125]
[1721259931424,22.60195347,156.03,155.93,0.8081502]
[1721259931425,6.4103,156.0,155.95,6.4122]
[1721259931627,6.4103,156.0,155.96,1.28213417]
[1721259932139,6.4103,156.0,155.96,7.69393417]
[1721259932339,6.4103,156.0,155.96,1.28213417]
[1721259933346,6.4107,155.99,155.96,1.28213417]
[1721259933658,6.4107,155.99,155.97,1.28214366]
[1721259933841,6.4107,155.99,155.95,7.69444387]
[1721259934145,22.60195347,156.03,155.94,16.031]
[1721259934146,6.4097,156.02,155.97,16.6305]
[1721259934346,6.4097,156.02,155.98,1.28191062]
[1721259934548,6.4097,156.02,155.99,1.28190653]
[1721259934748,6.57885347,156.03,155.97,16.6305]
[1721259934934,6.57885347,156.03,155.98,1.28199401]
[1721259935117,6.57885347,156.03,155.99,1.28194222]
[1721259935331,6.4099,156.01,155.97,16.6305]
[1721259936351,6.57885347,156.03,155.97,16.6305]
[1721259936541,6.4101,156.01,155.97,16.6305]
[1721259937527,6.4109,155.99,155.97,16.6305]
[1721259937949,6.4102,156.0,155.97,16.6305]
[1721259938449,6.4107,155.99,155.97,16.6305]
[1721259938673,6.4102,156.0,155.97,16.6305]
[1721259939756,6.4107,155.99,155.95,22.4423]
[1721259939964,6.4103,156.0,155.95,22.4423]
[1721259940162,6.4103,156.0,155.95,38.1823]
[1721259940328,6.4097,156.02,155.96,44.6462]
[1721259940530,6.4099,156.01,155.96,44.6462]
[1721259941650,6.57885347,156.03,155.97,16.028]
[1721259941955,6.4095,156.02,155.97,22.4394]
[1721259942155,6.4098,156.01,155.97,16.028]
[1721259942544,6.4098,156.01,155.97,22.4394]
[1721259942962,6.4098,156.01,155.96,38.5745]
[1721259942963,6.4103,156.0,155.96,38.5745]
[1721259943164,6.4103,156.0,155.96,22.4945]
[1721259944867,6.4103,156.0,155.96,28.9063]
[1721259945057,6.4099,156.01,155.96,28.9063]
[1721259945769,6.4103,156.0,155.96,28.9063]
[1721259946077,6.4103,156.0,155.96,16.1252]
[1721259946270,6.4107,155.99,155.96,16.1252]
[1721259947145,6.4103,156.0,155.96,22.5369]
[1721259947345,6.4099,156.01,155.96,16.1252]
[1721259947668,6.4099,156.01,155.96,22.537]
[1721259948267,6.57885347,156.03,155.96,16.1252]
[1721259948476,6.4095,156.02,155.96,31.8652]
[1721259948781,6.4095,156.02,155.96,16.1252]
[1721259948953,6.4095,156.02,155.98,16.027]
[1721259949689,6.4098,156.01,155.98,16.027]
[1721259949982,6.4098,156.01,155.97,6.4111]
[1721259950336,6.4095,156.02,155.98,6.411]
[1721259950541,12.98795347,156.03,155.98,6.411]
[1721259951357,6.4095,156.02,155.98,6.411]
[1721259951669,6.4095,156.02,155.97,38.1796]
[1721259951870,6.57885347,156.03,155.97,16.0282]
[1721259951871,6.4102,156.0,155.97,16.0282]
[1721259952165,6.4102,156.0,155.96,16.1252]
[1721259952576,6.4102,156.0,155.96,22.537]
[1721259953357,6.4108,155.99,155.96,16.1252]
[1721259953743,6.4113,155.98,155.96,16.1252]
[1721259955459,6.4107,155.99,155.96,16.1252]
[1721259955967,6.4101,156.01,155.97,1.28220379]
[1721259956375,6.4101,156.01,155.96,16.1252]
[1721259957076,6.58269844,156.02,155.97,1.28197813]